[Event "43rd Blackpool Chess Conference 2019"]
[Site "Blackpool"]
[Date "2019.03.10"]
[Round "4.12"]
[White "Paul, Nathanael"]
[Black "Wall, Tim P"]
[Result "0-1"]
[ECO "A45"]
[WhiteElo "1924"]
[BlackElo "2234"]
[Annotator "NA RC"]
[PlyCount "92"]
[EventDate "2019.03.08"]
[EventType "swiss"]
[EventCountry "ENG"]
[SourceTitle "playchess.com"]
[Source "ChessBase"]
[SourceQuality "1"]
[TimeControl "6600+10"]

1. d4 {[%emt 0:00:00]} Nf6 {[%emt 0:04:36]} 2. Nc3 {[%emt 0:00:02]} d6 {[%emt 0:02:17]} 3. Bf4 {[%emt 0:02:02]} Nbd7 {[%emt 0:04:38]} 4. Nf3 {[%emt 0:00:28]} c6 {[%emt 0:01:10]} 5. Qd2 {[%emt 0:04:40]} Qa5 {[%emt 0:02:32]} 6. Rd1 {[%emt 0:08:10]} d5 {[%emt 0:03:09]} 7. h3 {[%emt 0:05:51]} e6 {[%emt 0:03:58]} 8. a3 {[%emt 0:02:25]} b5 {[%emt 0:02:39]} 9. Nb1 {[%emt 0:06:32]} Qb6 {[%emt 0:04:51]} 10. c3 {[%emt 0:02:18]} Be7 {[%emt 0:04:20]} 11. e3 {[%emt 0:17:30]} c5 {[%emt 0:02:39]} 12. Bd3 {[%emt 0:00:11]} O-O {[%emt 0:01:24]} 13. Qe2 {[%emt 0:01:47]} c4 {[%emt 0:03:25]} 14. Bc2 {[%emt 0:00:05]} a5 {[%emt 0:00:19]} 15. Nbd2 {[%emt 0:05:33]} b4 {[%emt 0:01:24]} 16. a4 {[%emt 0:01:12]} Bb7 {[%emt 0:04:38]} 17. e4 {[%emt 0:07:58]} bxc3 {[%emt 0:06:38]} 18. bxc3 {[%emt 0:01:25]} Qb2 {[%emt 0:00:16]} 19. Nb1 {[%emt 0:01:45]} dxe4 {[%emt 0:02:32]} 20. Ne5 {[%emt 0:03:03]} Qb6 {[%emt 0:05:09]} 21. O-O {[%emt 0:04:20]} Rfd8 {[%emt 0:10:16]} 22. Rfe1 {[%emt 0:22:14]} Bd5 {[%emt 0:08:42]} 23. Nxd7 {[%emt 0:03:04]} Rxd7 {[%emt 0:00:42]} 24. Be5 {[%emt 0:00:47]} Rad8 {[%emt 0:06:31]} 25. Qe3 {[%emt 0:03:40]} Qc6 {[%emt 0:03:18]} 26. Nd2 {[%emt 0:00:31]} Rb7 {[%emt 0:02:07]} 27. Rb1 {[%emt 0:04:04]} Rdd7 {[%emt 0:01:47]} 28. Bxf6 {[%emt 0:00:24]} Bxf6 {[%emt 0:00:13]} 29. Nxe4 {[%emt 0:00:05]} Be7 {[%emt 0:00:44]} 30. f3 {[%emt 0:00:32]} h6 {[%emt 0:03:49]} 31. Nf2 {[%emt 0:00:35]} Rxb1 {[%emt 0:00:55]} 32. Rxb1 {[%emt 0:00:05]} Rb7 {[%emt 0:00:10]} 33. Rxb7 {[%emt 0:01:26]} Qxb7 {[%emt 0:00:07]} 34. Qc1 {[%emt 0:00:02]} Qb6 {[%emt 0:04:18]} 35. Kf1 {[%emt 0:00:32]} Qb8 {[%emt 0:01:44]} 36. Ng4 {[%emt 0:00:28]} Bg5 {[%emt 0:01:25]} 37. Qb1 {[%emt 0:00:05]} Qxb1+ {[%emt 0:01:07]} 38. Bxb1 {[%emt 0:00:02]} Bd2 {[%emt 0:00:11]} 39. Ne5 {[%emt 0:00:22]} f6 {[%emt 0:00:46]} 40. Nd7 $19 {[%emt 0:00:14]} Bxc3 {[%emt 0:00:11]} 41. Be4 {[%emt 0:00:06]} Bxd4 {[%emt 0:00:22]} 42. Bc2 {[%emt 0:00:11]} Kf7 {[%emt 0:00:46]} 43. Nb8 {[%emt 0:00:06]} Ke7 {[%emt 0:00:16]} 44. Na6 {[%emt 0:00:16]} Kd6 {[%emt 0:00:17]} 45. Bg6 {[%emt 0:00:09]} c3 {[%emt 0:00:28]} 46. Ke1 {[%emt 0:00:07]} Bc4 {[%emt 0:00:14]} 0-1

[Event "43rd Blackpool Chess Conference 2019"]
[Site "Blackpool"]
[Date "2019.03.10"]
[Round "5.3"]
[White "Frew, Elliot"]
[Black "Ellames, Roy"]
[Result "1/2-1/2"]
[ECO "B01"]
[WhiteElo "2080"]
[BlackElo "2035"]
[Annotator "NA"]
[PlyCount "40"]
[EventDate "2019.03.08"]
[EventType "swiss"]
[EventCountry "ENG"]
[SourceTitle "playchess.com"]
[Source "ChessBase"]
[SourceQuality "1"]
[TimeControl "6600+10"]

{[%evp 13,31,20,32767,5,0,32767,-12,-18,32767,-10,-7,-4,-5,0,32767,0,-13,-30,-24,-16]} 1. e4 {[%emt 0:01:59]} d5 {[%emt 0:00:00]} 2. exd5 {[%emt 0:00:08]} Qxd5 {[%emt 0:00:00]} 3. Nc3 {[%emt 0:00:14]} Qd6 {[%emt 0:00:06]} 4. d4 {[%emt 0:01:22]} Nf6 {[%emt 0:00:18]} 5. Nf3 {[%emt 0:00:21]} g6 {[%emt 0:00:07]} 6. Bc4 {[%emt 0:01:04]} Bg7 {[%emt 0:00:26]} 7. Ne5 {[%emt 0:02:13]} O-O {[%emt 0:00:10]} 8. Be3 {[%emt 0:00:51]} a6 {[%emt 0:06:18]} 9. Qf3 {[%emt 0:02:52]} Nbd7 {[%emt 0:06:24]} 10. Nxd7 {[%emt 0:01:30]} Bxd7 {[%emt 0:04:21]} 11. O-O {[%emt 0:01:23]} Bg4 {[%emt 0:19:13]} 12. Qf4 {[%emt 0:02:57]} b5 {[%emt 0:04:31]} 13. Bb3 {[%emt 0:02:41]} Qd7 {[%emt 0:11:49]} 14. f3 {[%emt 0:05:10]} Be6 {[%emt 0:00:17]} 15. Bxe6 {[%emt 0:00:21]} Qxe6 {[%emt 0:00:02]} 16. Bf2 $11 {[%emt 0:00:18]} Nd5 {[%emt 0:04:54]} 17. Nxd5 {[%emt 1:27:26]} Qxd5 {[%emt 0:53:54]} 18. Qxc7 {[%emt 0:00:10]} Rac8 19. Qxe7 Rfe8 20. Qa3 Rxc2 {[%emt 0:00:30]} 1/2-1/2

[Event "43rd Blackpool Chess Conference 2019"]
[Site "Blackpool"]
[Date "2019.03.10"]
[Round "5.5"]
[White "Dobson, Graham"]
[Black "Molano Lafuente, Ismael"]
[Result "0-1"]
[ECO "A10"]
[WhiteElo "1879"]
[BlackElo "1956"]
[Annotator "NA"]
[PlyCount "108"]
[EventDate "2019.03.08"]
[EventType "swiss"]
[EventCountry "ENG"]
[SourceTitle "playchess.com"]
[Source "ChessBase"]
[SourceQuality "1"]
[TimeControl "6600+10"]

1. g3 {[%emt 0:00:00]} f5 {[%emt 0:00:24]} 2. Bg2 {[%emt 0:00:00]} Nf6 {[%emt 0:00:05]} 3. c4 {[%emt 0:00:02]} e6 {[%emt 0:00:02]} 4. b3 {[%emt 0:00:26]} d5 {[%emt 0:00:03]} 5. cxd5 {[%emt 0:00:45]} (5. Bb2 Bd6 6. Nf3 O-O 7. O-O c6 8. d3 f4 9. e3 fxg3 10. hxg3 Qe7 11. Ne5 a5 12. a3 Bd7 13. Nd2 Be8 14. f4 Bh5 15. Bf3 Bxf3 16. Ndxf3 {1-0 (29) Kaasen,T (2387)-Spraggett,K (2513) Lisbon 2019}) 5... exd5 {[%emt 0:00:02]} 6. Bb2 {[%emt 0:00:18] A10: English Opening: Unusual Replies for Black} c6 {[%emt 0:00:03]} 7. Nf3 {[%emt 0:00:57]} Bd6 {[%emt 0:00:03]} 8. d3 {[%emt 0:00:33]} O-O {[%emt 0:00:15]} 9. O-O $146 {[%emt 0:02:12]} ({Predecessor:} 9. Nbd2 Qe7 10. O-O Nbd7 11. Qc2 {½-½ (60) Kamer,K (2208)-Nukan,B (1718) Kesan 2018}) 9... f4 {[%emt 0:00:37]} 10. Be5 {[%emt 0:03:38]} (10. Qd2 $11) 10... fxg3 {[%emt 0:01:47]} 11. hxg3 {[%emt 0:00:17]} Ng4 {[%emt 0:00:55]} 12. Bxd6 {[%emt 0:00:30]} Qxd6 {[%emt 0:00:04]} 13. Nbd2 {[%emt 0:02:42]} (13. Nc3 $11) 13... Qh6 {[%emt 0:00:46]} 14. Re1 {[%emt 0:00:35]} Nd7 {[%emt 0:02:10]} 15. d4 {[%emt 0:01:45]} Ndf6 {[%emt 0:00:41]} 16. e4 $1 {[%emt 0:03:03]} dxe4 {[%emt 0:03:11]} 17. Nxe4 {[%emt 0:00:03]} Bf5 {[%emt 0:00:37]} 18. Nxf6+ {[%emt 0:01:06]} Rxf6 {[%emt 0:00:48]} 19. Qc1 {[%emt 0:03:19]} Rd8 {[%emt 0:04:08]} 20. Qxh6 {[%emt 0:00:31]} Nxh6 {[%emt 0:00:03]} 21. Re7 {[%emt 0:02:12]} Rf7 {[%emt 0:00:01]} 22. Rae1 {[%emt 0:06:24]} Kf8 {[%emt 0:00:31]} 23. R7e5 {[%emt 0:05:48]} g6 {[%emt 0:02:34]} 24. Ng5 {[%emt 0:22:46]} Rfd7 {[%emt 0:00:01]} 25. f3 {[%emt 0:02:34]} Nf7 {[%emt 1:34:19]} 26. Nxf7 {[%emt 0:01:24]} Rxf7 {[%emt 0:00:00]} 27. g4 {[%emt 0:00:30]} Bd3 {[%emt 0:00:00]} 28. g5 {[%emt 0:04:53]} Rxd4 {[%emt 0:00:00]} 29. Re8+ {[%emt 0:00:12]} Kg7 {[%emt 0:00:00]} 30. Ra8 {[%emt 0:00:01]} h6 {[%emt 0:00:00]} 31. gxh6+ {[%emt 0:01:39]} Kxh6 {[%emt 0:00:00]} 32. Rxa7 {[%emt 0:00:08]} Kg5 {[%emt 0:00:00]} 33. Ra5+ {[%emt 0:04:20]} Kf4 {[%emt 0:00:00]} 34. Rae5 {[%emt 0:00:23]} Bf5 {[%emt 0:00:00]} 35. Kf2 {[%emt 0:02:28]} Rd2+ {[%emt 0:00:00]} 36. R5e2 {[%emt 0:00:31]} Rfd7 {[%emt 0:00:00]} 37. Rxd2 {[%emt 0:00:36]} Rxd2+ {[%emt 0:00:00]} 38. Re2 {[%emt 0:00:08]} Rd1 {[%emt 0:00:00]} 39. Rb2 {[%emt 0:04:18]} c5 {[%emt 0:00:00]} 40. Ke2 {[%emt 0:01:10]} Rg1 {[%emt 0:00:00]} 41. Kf2 {[%emt 0:00:01]} Rc1 {[%emt 0:00:00]} 42. Bf1 $1 {[%emt 0:02:05]} Rc3 {[%emt 0:00:00]} 43. Be2 {[%emt 0:00:34]} Bc2 {[%emt 0:00:00]} 44. b4 {[%emt 0:00:58]} c4 {[%emt 0:00:00]} 45. b5 {[%emt 0:00:07]} Bd3 {[%emt 0:00:00]} 46. a4 {[%emt 0:00:31]} Bxe2 {[%emt 0:00:00]} 47. Kxe2 {[%emt 0:00:32]} Re3+ {[%emt 0:00:00]} 48. Kf2 {[%emt 0:00:16]} (48. Kd1 $11) 48... Rxf3+ {[%emt 0:00:00]} 49. Ke2 {[%emt 0:01:34]} Re3+ {[%emt 0:00:00]} 50. Kf2 $2 {[%emt 0:03:13]} ({White has to play} 50. Kd1 $15) 50... Rb3 {[%emt 0:00:00]} 51. Rc2 {[%emt 0:02:09]} c3 {[%emt 0:00:00]} 52. Ke2 {[%emt 0:00:10]} Ke4 {[%emt 0:00:00]} 53. b6 {[%emt 0:01:41]} Rb2 {[%emt 0:00:00]} 54. Kd1 {[%emt 0:00:18]} Kd3 {[%emt 0:00:00]} 0-1

[Event "43rd Blackpool Chess Conference 2019"]
[Site "Blackpool"]
[Date "2019.03.10"]
[Round "5.6"]
[White "Gayson, Peter M"]
[Black "Phillips, David A"]
[Result "1-0"]
[ECO "B33"]
[WhiteElo "2121"]
[BlackElo "2040"]
[Annotator "ChessBase"]
[PlyCount "33"]
[EventDate "2019.03.08"]
[EventType "swiss"]
[EventCountry "ENG"]
[SourceTitle "playchess.com"]
[Source "ChessBase"]
[SourceQuality "1"]
[TimeControl "6600+10"]

1. e4 {[%emt 0:11:24]} c5 {[%emt 0:01:25]} 2. Nf3 {[%emt 0:00:18]} Nc6 {[%emt 0:00:05]} 3. d4 {[%emt 0:00:10]} cxd4 {[%emt 0:00:02]} 4. Nxd4 {[%emt 0:00:07]} Nf6 {[%emt 0:00:14]} 5. Nc3 {[%emt 0:00:12]} e5 {[%emt 0:00:20]} 6. Ndb5 {[%emt 0:00:14]} Bb4 {[%emt 0:01:07]} 7. a3 {[%emt 0:12:38]} Bxc3+ {[%emt 0:01:56]} 8. Nxc3 {[%emt 0:02:28]} d6 {[%emt 0:07:47]} 9. Bg5 {[%emt 0:03:37]} Be6 {[%emt 0:04:39]} 10. Bxf6 {[%emt 0:07:24]} gxf6 {[%emt 0:00:27]} 11. Nd5 {[%emt 0:01:35]} f5 {[%emt 0:06:03]} 12. exf5 {[%emt 0:08:13]} Bxf5 {[%emt 0:05:59]} 13. Ne3 {[%emt 0:04:19]} Be6 {[%emt 0:09:50]} 14. Bc4 {[%emt 0:06:25]} Bxc4 {[%emt 0:04:16]} 15. Nxc4 {[%emt 0:00:08]} d5 {[%emt 0:00:33]} 16. Ne3 {[%emt 0:02:01]} d4 {[%emt 0:02:17]} 17. Nf5 {[%emt 0:02:52]} 1-0

[Event "43rd Blackpool Chess Conference 2019"]
[Site "Blackpool"]
[Date "2019.03.10"]
[Round "5.8"]
[White "Han, Yichen"]
[Black "Walker, Nicholas A"]
[Result "1-0"]
[ECO "B32"]
[WhiteElo "2190"]
[BlackElo "1976"]
[Annotator "NA"]
[PlyCount "89"]
[EventDate "2019.03.08"]
[EventType "swiss"]
[EventCountry "ENG"]
[SourceTitle "playchess.com"]
[Source "ChessBase"]
[SourceQuality "1"]
[TimeControl "6600+10"]

1. e4 {[%emt 0:03:44]} c5 {[%emt 0:00:00]} 2. Nf3 {[%emt 0:00:06]} Nc6 {[%emt 0:00:03]} 3. d4 {[%emt 0:00:08]} cxd4 {[%emt 0:00:06]} 4. Nxd4 {[%emt 0:00:04]} e5 {[%emt 0:00:18]} 5. Nb5 {[%emt 0:00:04]} a6 {[%emt 0:00:06]} 6. Nd6+ {[%emt 0:00:05]} Bxd6 {[%emt 0:00:05]} 7. Qxd6 {[%emt 0:00:03]} Qf6 {[%emt 0:00:05]} 8. Qd1 {[%emt 0:00:08]} Qg6 {[%emt 0:00:14]} 9. Nc3 {[%emt 0:00:42]} d5 {[%emt 0:00:41]} 10. Nxd5 {[%emt 0:07:02]} Qxe4+ {[%emt 0:00:13]} 11. Be3 {[%emt 0:00:09]} Nd4 {[%emt 0:00:27]} 12. Nc7+ {[%emt 0:01:28]} Ke7 $1 {[%emt 0:00:41]} 13. Qd3 {[%emt 0:07:27]} Nxc2+ {[%emt 0:03:04]} 14. Kd2 {[%emt 0:00:55]} Qxd3+ $1 {[%emt 0:04:11]} 15. Bxd3 {[%emt 0:00:10]} Nxe3 {[%emt 0:00:05]} 16. Nxa8 {[%emt 0:00:33]} Nd5 $1 {[%emt 0:00:06]} 17. Rac1 {[%emt 0:08:16]} Ngf6 {[%emt 0:01:47]} 18. Nc7 {[%emt 0:00:22]} Nf4 {[%emt 0:01:02]} 19. g3 {[%emt 0:03:52]} ({Better is} 19. Rhe1 $14) 19... Nxd3 {[%emt 0:00:46]} 20. Kxd3 {[%emt 0:00:04]} Bd7 {[%emt 0:03:26]} 21. Rhd1 {[%emt 0:21:25]} Bc6 {[%emt 0:09:26]} 22. Ke3 {[%emt 0:01:31]} Rd8 {[%emt 0:01:26]} 23. Rxd8 {[%emt 0:02:14]} Kxd8 {[%emt 0:00:15]} 24. Nxa6 {[%emt 0:00:41]} Ng4+ {[%emt 0:00:16]} 25. Kd2 {[%emt 0:00:07]} Nxf2 {[%emt 0:00:30]} 26. Nb4 {[%emt 0:01:23]} Bd7 {[%emt 0:01:44]} 27. Nd3 {[%emt 0:01:34]} Nxd3 {[%emt 0:01:03]} 28. Kxd3 {[%emt 0:01:39]} Bc6 {[%emt 0:00:10]} 29. b3 {[%emt 0:00:35]} Ke7 {[%emt 0:00:33]} 30. a4 {[%emt 0:00:17]} f5 {[%emt 0:00:41]} 31. a5 {[%emt 0:00:17]} Kd6 {[%emt 0:00:50]} 32. b4 {[%emt 0:01:10]} g5 {[%emt 0:01:52]} 33. Rc5 {[%emt 0:02:43]} f4 {[%emt 0:00:32]} 34. gxf4 {[%emt 0:00:29]} gxf4 {[%emt 0:00:06]} 35. Kc4 {[%emt 0:04:49]} f3 {[%emt 0:02:57]} 36. Kd3 {[%emt 0:00:12]} h5 {[%emt 0:03:23]} 37. h4 {[%emt 0:00:30]} Bd7 {[%emt 0:01:04]} 38. Ke3 {[%emt 0:01:03]} Bc6 {[%emt 0:03:02]} 39. Kf2 {[%emt 0:00:29]} Bd5 {[%emt 0:00:37]} 40. Rb5 {[%emt 0:00:56]} e4 {[%emt 0:00:53]} 41. Ke3 {[%emt 0:01:15]} Ke5 {[%emt 0:00:57]} 42. Rc5 {[%emt 0:00:27]} Kd6 $18 {[%emt 0:00:27]} 43. Rc8 {[%emt 0:00:16]} Be6 {[%emt 0:03:01]} 44. Rh8 {[%emt 0:00:38]} Kd5 {[%emt 0:01:21]} 45. Rxh5+ {[%emt 0:00:09]} 1-0

[Event "43rd Blackpool Chess Conference 2019"]
[Site "Blackpool"]
[Date "2019.03.10"]
[Round "5.9"]
[White "Hamer, Martyn"]
[Black "Milson, Samuel A"]
[Result "1-0"]
[ECO "D15"]
[WhiteElo "2064"]
[BlackElo "2096"]
[Annotator "NA"]
[PlyCount "88"]
[EventDate "2019.03.08"]
[EventType "swiss"]
[EventCountry "ENG"]
[SourceTitle "playchess.com"]
[Source "ChessBase"]
[SourceQuality "1"]
[TimeControl "6600+10"]

1. d4 {[%emt 0:00:00]} d5 {[%emt 0:00:00]} 2. c4 {[%emt 0:00:00]} c6 {[%emt 0:00:00]} 3. Nf3 {[%emt 0:00:08]} Nf6 {[%emt 0:00:05]} 4. Nc3 {[%emt 0:00:04]} dxc4 {[%emt 0:00:08]} 5. e4 {[%emt 0:00:06]} b5 {[%emt 0:00:09]} 6. e5 {[%emt 0:00:06]} Nd5 {[%emt 0:00:25]} 7. a4 {[%emt 0:00:27]} Nxc3 {[%emt 0:03:02]} 8. bxc3 {[%emt 0:00:05]} e6 {[%emt 0:01:39]} 9. Ng5 {[%emt 0:01:56] D15: Slav Defence: 4 Nc3 a6 and gambit lines after 4 Nc3 dxc4} (9. axb5 cxb5 10. Ng5 {0-1 (41) Cramling,P (2518)-Gunina,V (2522) Beijing 2014}) 9... Bb7 {[%emt 0:01:15] [#]} 10. Qh5 $1 {[%emt 0:02:27]} ({Much worse is} 10. axb5 cxb5 11. Qh5 g6 $15 12. Qh3 Nd7 13. Rb1 a6 14. Bxc4 Qc7 15. Bxe6 Nxe5 16. Bf4 Nd3+ 17. Qxd3 Qxf4 18. Bxf7+ Kd7 {0-1 (41) Cramling,P (2518)-Gunina,V (2522) Beijing 2014}) 10... Qd7 {[%emt 0:02:33] [#]} 11. Be3 $146 {[%emt 0:03:28]} ({Predecessor:} 11. Be2 $1 $16 a6 12. Nxh7 Kd8 13. Nxf8 Rxf8 14. Qh7 g6 15. Ba3 Re8 16. Bc5 a5 17. h4 Na6 18. Bd6 b4 19. h5 g5 20. h6 f5 21. Qg6 g4 22. h7 {1-0 (22) Lodici,L (2150)-Kolesar,M (2166) Trieste 2014}) 11... Na6 {[%emt 0:02:43]} 12. Be2 {[%emt 0:01:35]} Nc7 {[%emt 0:00:12]} 13. Ne4 {[%emt 0:02:55]} Nd5 {[%emt 0:01:52]} (13... c5 $5 14. Nxc5 Bxc5 15. dxc5 Nd5 $11) 14. Bg5 {[%emt 0:01:24]} (14. O-O $14) 14... a6 {[%emt 0:03:48]} 15. O-O {[%emt 0:02:23]} Qc7 {[%emt 0:05:58]} 16. Bg4 {[%emt 0:04:38]} Qd7 {[%emt 0:03:32]} 17. Qh3 {[%emt 0:02:44]} h5 {[%emt 0:05:19]} 18. f4 {[%emt 0:11:55]} g6 {[%emt 0:00:58]} 19. Bf6 {[%emt 0:05:25]} Rh6 {[%emt 0:01:28]} (19... Rh7 $11) 20. Be2 {[%emt 0:03:47]} Qc7 {[%emt 0:03:51]} 21. Bg5 {[%emt 0:01:58]} Rh8 {[%emt 0:06:52]} 22. g4 {[%emt 0:01:24]} f5 {[%emt 0:04:54]} 23. exf6 {[%emt 0:02:09]} ({Reject} 23. gxh5 $6 gxh5 24. Nf6+ (24. Bxh5+ Kd7 $11) 24... Nxf6 $14) 23... Qf7 {[%emt 0:06:21]} 24. gxh5 {[%emt 0:03:31]} gxh5 {[%emt 0:05:16]} 25. f5 {[%emt 0:04:51]} Bc8 {[%emt 0:01:06]} 26. fxe6 Bxe6 {[%emt 0:00:18]} 27. Qg3 {[%emt 0:01:59]} Rg8 {[%emt 0:11:37]} 28. h4 {[%emt 0:01:04]} Kd7 {[%emt 0:04:10]} 29. Qe5 {[%emt 0:06:55]} Bh3 {[%emt 0:05:14]} 30. axb5 {[%emt 0:06:50]} cxb5 {[%emt 0:00:56] [#]} 31. Bxh5 $1 {[%emt 0:02:13]} Qe6 {[%emt 0:01:38]} 32. f7 {[%emt 0:02:30]} Qxe5 {[%emt 0:06:04]} 33. fxg8=Q {[%emt 0:02:15] Discovered Attack} Qxe4 {[%emt 0:02:38]} 34. Bf3 {[%emt 0:00:34]} Be6 {[%emt 0:00:58]} 35. Bxe4 {[%emt 0:06:10]} Bxg8 {[%emt 0:00:08]} 36. h5 {[%emt 0:02:20]} Re8 {[%emt 0:02:31]} 37. Bxd5 $18 {[%emt 0:00:34]} Bxd5 {[%emt 0:00:08]} 38. Rae1 {[%emt 0:00:27]} a5 {[%emt 0:04:26]} 39. Rxe8 {[%emt 0:00:36]} Kxe8 {[%emt 0:00:10]} 40. Rf5 {[%emt 0:01:31]} Bg8 {[%emt 0:01:38]} 41. Rxb5 {[%emt 0:00:32]} a4 {[%emt 0:00:10]} 42. Ra5 {[%emt 0:01:29]} a3 {[%emt 0:00:08]} 43. Kf2 {[%emt 0:00:48]} Bh7 {[%emt 0:00:20]} 44. Bc1 {[%emt 0:00:36]} Kd8 {[%emt 0:10:42]} 1-0

[Event "43rd Blackpool Chess Conference 2019"]
[Site "Blackpool"]
[Date "2019.03.10"]
[Round "5.10"]
[White "Sucikova, Svetlana"]
[Black "Fallowfield, Jeremy R"]
[Result "1-0"]
[ECO "A35"]
[WhiteElo "2110"]
[BlackElo "2134"]
[Annotator "NA"]
[PlyCount "59"]
[EventDate "2019.03.08"]
[EventType "swiss"]
[EventCountry "ENG"]
[SourceTitle "playchess.com"]
[Source "ChessBase"]
[SourceQuality "1"]
[TimeControl "6600+10"]

{[%evp 11,46,-10,-2,-5,0,32767,22,14,32767,29,49,32767,8,14,30,32767,2,0,-3,-23,0,-74,61,75,170,177,32767,32767,259,266,32767,32767,32767,32767,32767,32767,302]} 1. e3 {[%emt 0:02:35]} g6 {[%emt 0:00:13]} 2. c4 {[%emt 0:00:34]} Bg7 {[%emt 0:00:02]} 3. Nc3 {[%emt 0:00:10]} Nf6 {[%emt 0:00:19]} 4. Nf3 {[%emt 0:00:25]} O-O {[%emt 0:01:41]} 5. Be2 {[%emt 0:00:57]} c5 {[%emt 0:01:34]} 6. d4 {[%emt 0:00:30]} cxd4 {[%emt 0:00:22]} 7. Nxd4 {[%emt 0:00:50]} Nc6 {[%emt 0:06:39]} 8. O-O {[%emt 0:02:33]} d6 {[%emt 0:03:55]} 9. b3 {[%emt 0:01:22]} Nxd4 {[%emt 0:00:46]} 10. exd4 {[%emt 0:01:23]} d5 {[%emt 0:00:22] A35: Symmetrical English: 2 Nc3 Nc6 3 Nf3} 11. Be3 {[%emt 0:02:06]} (11. c5 Bf5 12. b4 b6 13. Bf4 bxc5 14. bxc5 Qa5 15. Qd2 e6 16. Nxd5 Qxd2 17. Ne7+ Kh8 18. Bxd2 {1-0 (32) Dzagnidze,N (2529)-Khotenashvili,B (2502) Huaian 2016}) 11... b6 {[%emt 0:04:28] LiveBook: 4 Games} 12. Bf3 {[%emt 0:04:51]} Bb7 {[%emt 0:01:46]} 13. Re1 $146 {[%emt 0:01:03]} ({Predecessor:} 13. b4 Ne4 14. Bxe4 dxe4 15. Rc1 f5 16. d5 f4 17. Bd4 e5 18. Bxe5 Bxe5 19. Nxe4 f3 20. gxf3 Rc8 21. Qd3 b5 22. Nc5 Qg5+ {0-1 (22) Stiemerling,W (2134)-Trenner,R (2177) Germany 2015}) 13... Qd7 {[%emt 0:01:33]} 14. Rc1 {[%emt 0:06:46]} dxc4 {[%emt 0:02:16]} 15. bxc4 {[%emt 0:00:13]} Rac8 {[%emt 0:00:16]} 16. Nb5 {[%emt 0:02:29]} (16. Bxb7 $11 Qxb7 17. Qe2) 16... Rfd8 {[%emt 0:02:40] [#]} (16... Bxf3 $15 17. Qxf3 a6) 17. d5 $1 {[%emt 0:06:01]} Ba8 {[%emt 0:16:23]} (17... Ba6 $14) 18. Qa4 {[%emt 0:02:36]} Bb7 {[%emt 0:05:16]} 19. Qxa7 {[%emt 0:07:30]} Ra8 {[%emt 0:00:15]} 20. Qxb6 {[%emt 0:00:06]} Rxa2 {[%emt 0:00:33]} 21. Bc5 {[%emt 0:00:36]} Bf8 {[%emt 0:00:51]} 22. h3 {[%emt 0:06:46]} Ne8 {[%emt 0:03:19]} 23. Nd4 {[%emt 0:10:36]} Ra6 {[%emt 0:03:55]} 24. Qb4 {[%emt 0:02:34]} Ra4 {[%emt 0:00:58]} 25. Qb3 {[%emt 0:01:28]} Nd6 {[%emt 0:00:30]} 26. Bxd6 {[%emt 0:00:38]} exd6 {[%emt 0:00:07]} 27. Bg4 {[%emt 0:00:05]} f5 {[%emt 0:00:23] [#]} 28. Nxf5 $1 {[%emt 0:04:10]} gxf5 {[%emt 0:00:49]} 29. Bxf5 {[%emt 0:00:05]} Qxf5 {[%emt 0:00:10]} 30. Qxa4 {[%emt 0:00:05]} 1-0

[Event "43rd Blackpool Chess Conference 2019"]
[Site "Blackpool"]
[Date "2019.03.10"]
[Round "5.11"]
[White "Harkness, Bryan"]
[Black "Burnett, Jim"]
[Result "1/2-1/2"]
[ECO "C17"]
[WhiteElo "1935"]
[BlackElo "1996"]
[Annotator "NA"]
[PlyCount "50"]
[EventDate "2019.03.08"]
[EventType "swiss"]
[EventCountry "ENG"]
[SourceTitle "playchess.com"]
[Source "ChessBase"]
[SourceQuality "1"]
[TimeControl "6600+10"]

{[%evp 15,47,-19,-21,-48,-33,-49,-52,32767,-45,-45,7,11,7,0,-4,-62,9,0,32767,32767,32767,101,82,75,86,72,122,26,28,25,21,32767,35,17]} 1. e4 {[%emt 0:00:00]} e6 {[%emt 0:00:00]} 2. d4 {[%emt 0:00:11]} d5 {[%emt 0:00:03]} 3. Nc3 {[%emt 0:00:19]} Bb4 {[%emt 0:00:05]} 4. e5 {[%emt 0:00:15]} c5 {[%emt 0:00:06]} 5. Bd2 {[%emt 0:00:25]} Ne7 {[%emt 0:00:07]} 6. Nb5 {[%emt 0:00:59]} Bxd2+ {[%emt 0:00:06]} 7. Qxd2 {[%emt 0:00:06]} O-O {[%emt 0:00:05]} 8. dxc5 {[%emt 0:04:48]} Nd7 {[%emt 0:01:34]} 9. f4 {[%emt 0:00:59]} Nxc5 {[%emt 0:00:15]} 10. Bd3 {[%emt 0:01:42]} Bd7 {[%emt 0:00:40] C17: French: 3 Nc3 Bb4 4 e5 c5 sidelines} 11. Nd4 {[%emt 0:08:47]} Qb6 {[%emt 0:00:17]} 12. O-O-O {[%emt 0:00:15]} f6 $146 {[%emt 0:06:05]} ({Predecessor:} 12... Nc6 13. Ngf3 Nb4 14. Kb1 Rac8 15. Rc1 Ncxd3 16. cxd3 Bb5 17. Nxb5 Qxb5 18. d4 {0-1 (65) Kritz,L (2624)-Kuljasevic,D (2528) Washington DC 2011}) 13. exf6 {[%emt 0:03:43]} Rxf6 {[%emt 0:00:08]} 14. Ngf3 {[%emt 0:00:56]} Nxd3+ {[%emt 0:03:17]} 15. cxd3 {[%emt 0:00:40]} ({White should play} 15. Qxd3 $11 Rxf4 16. Rhe1) 15... Be8 {[%emt 0:01:37]} (15... Ng6 $15 16. f5 exf5) 16. Kb1 {[%emt 0:06:35]} Rc8 {[%emt 0:00:38]} 17. Rc1 {[%emt 0:00:54]} Bg6 {[%emt 0:01:06]} 18. Rxc8+ {[%emt 0:05:26]} Nxc8 {[%emt 0:00:06]} 19. Nc2 {[%emt 0:00:09]} Ne7 {[%emt 0:02:30]} 20. Ne5 {[%emt 0:01:31]} Qb5 {[%emt 0:01:47]} 21. g3 {[%emt 0:11:43]} (21. Nd4 $16 Qb6 22. Ndf3) 21... Nc6 {[%emt 0:00:45]} 22. Nxg6 {[%emt 0:00:36]} Rxg6 {[%emt 0:00:20]} 23. Qe3 {[%emt 0:01:46]} h6 {[%emt 0:04:40]} 24. Re1 $11 {[%emt 0:01:12]} b6 {[%emt 0:01:16]} 25. Nd4 {[%emt 0:03:59]} Nxd4 {[%emt 0:01:14]} 1/2-1/2